bitfinex/quotes_SOLUSD_20250528
["timestamp","ask_amount","ask_price","bid_price","bid_amount"]
[1748429369499,20.10223421,174.11,174.08,10.4851549]
[1748429370079,59.30486656,174.11,174.03,43.50199562]
[1748429370281,59.30486656,174.11,174.07,10.4851549]
[1748429371010,48.81971166,174.11,174.07,10.4851549]
[1748429371205,59.30486656,174.11,174.07,10.4851549]
[1748429372210,59.30486656,174.11,174.06,10.4851549]
[1748429372514,10.4851549,174.1,174.06,10.4851549]
[1748429373301,10.4851549,174.1,174.03,33.7647]
[1748429373302,59.30486656,174.11,174.07,10.4851549]
[1748429374091,43.07621617,174.11,174.07,10.4851549]
[1748429374415,53.56137107,174.11,174.06,10.4851549]
[1748429374728,78.11621617,174.11,174.07,10.4851549]
[1748429375091,88.60137107,174.11,174.07,10.4851549]
[1748429375323,88.60137107,174.11,174.06,10.4851549]
[1748429376531,94.34486656,174.11,174.06,10.4851549]
[1748429377490,10.4851549,174.1,174.05,10.4851549]
[1748429377799,83.85971166,174.11,174.05,10.4851549]
[1748429377999,10.4851549,174.1,174.06,10.4851549]
[1748429378411,10.4851549,174.1,174.05,10.4851549]
[1748429379034,20.10454362,174.09,174.05,10.4851549]
[1748429380821,20.10454362,174.09,174.03,33.7647]
[1748429381127,20.10454362,174.09,174.05,10.4851549]
[1748429382935,30.58969852,174.09,174.03,33.7647]
[1748429383104,30.58969852,174.09,174.05,10.4851549]
[1748429385113,20.10454362,174.09,174.05,10.4851549]
[1748429387843,30.58969852,174.09,174.05,10.4851549]
[1748429392853,20.10454362,174.09,174.05,10.4851549]
[1748429393017,30.58969852,174.09,174.05,10.4851549]
[1748429395117,14.3603883,174.09,174.05,10.4851549]
[1748429396513,20.10454362,174.09,174.05,10.4851549]
[1748429398336,20.10454362,174.09,174.03,33.7647]
[1748429398337,20.10454362,174.09,174.07,10.4851549]
[1748429399034,20.10454362,174.09,174.06,10.4851549]
[1748429401644,20.10454362,174.09,174.05,10.4851549]
[1748429401936,20.10454362,174.09,174.04,10.4851549]
[1748429401937,30.58969852,174.09,174.04,10.4851549]
[1748429402357,30.58969852,174.09,174.03,7.7647]
[1748429402530,30.58969852,174.09,174.04,10.4851549]
[1748429402845,20.10454362,174.09,174.05,10.4851549]
[1748429403724,30.58969852,174.09,174.05,10.4851549]
[1748429404142,20.10454362,174.09,174.05,10.4851549]
[1748429405869,14.3603883,174.09,174.06,10.4851549]
[1748429408388,5.74382538,174.1,174.06,10.4851549]
[1748429408539,5.74382538,174.1,174.07,10.4851549]
[1748429411065,30.58854374,174.1,174.05,10.4851549]
[1748429411257,10.4851549,174.09,174.05,10.4851549]
[1748429411863,20.10338884,174.1,174.06,10.4851549]
[1748429412488,20.10338884,174.1,174.07,10.4851549]
[1748429415565,5.74382538,174.1,174.07,10.4851549]
[1748429415765,5.74382538,174.1,174.08,10.4851549]
[1748429415965,5.74382538,174.1,174.03,7.7647]
[1748429416203,5.74382538,174.1,174.08,10.4851549]
[1748429417063,5.74382538,174.1,174.09,10.4851549]
[1748429418296,5.74316563,174.12,174.08,12.1079549]
[1748429418475,5.74316563,174.12,174.09,10.4851549]
[1748429422187,20.09992534,174.13,174.1,10.4851549]
[1748429423807,5.74262055,174.14,174.12,10.4851549]
[1748429424090,14.35519284,174.16,174.12,10.4851549]
[1748429424290,20.09415546,174.18,174.13,10.4851549]
[1748429424669,30.57931036,174.18,174.13,10.4851549]
[1748429424873,20.09415546,174.18,174.11,26.0]
[1748429425063,20.09415546,174.18,174.13,10.4851549]
[1748429425506,20.09415546,174.18,174.14,10.4851549]
[1748429425664,5.74118727,174.18,174.17,10.4851549]
[1748429425865,5.74118727,174.18,174.16,10.4851549]
[1748429426086,5.74085768,174.19,174.15,10.4851549]
[1748429426297,30.57815679,174.19,174.14,1.576]
[1748429426476,30.57815679,174.19,174.15,10.4851549]
[1748429426874,5.74085768,174.19,174.16,10.4851549]
[1748429428005,5.74085768,174.19,174.17,10.4851549]
[1748429428175,5.74052812,174.2,174.14,1.576]
[1748429428373,30.57700334,174.2,174.15,10.4851549]
[1748429428578,10.4851549,174.18,174.14,1.576]
[1748429428781,10.4851549,174.17,174.13,10.4851549]
[1748429429184,20.09184844,174.2,174.14,10.4851549]
[1748429429371,30.57700334,174.2,174.15,10.4851549]
[1748429430300,5.74118727,174.18,174.14,10.4851549]
[1748429430475,10.4851549,174.16,174.12,26.0]
[1748429430673,10.4851549,174.17,174.12,36.4851549]
[1748429430889,10.4851549,174.17,174.12,26.0]
[1748429431219,10.4851549,174.17,174.13,10.4851549]
[1748429431501,10.4851549,174.17,174.12,26.0]
[1748429432113,30.57931036,174.18,174.14,10.4851549]
[1748429433915,20.09415546,174.18,174.12,36.4851549]
[1748429434090,5.74118727,174.18,174.16,10.4851549]
[1748429434516,5.74085768,174.19,174.16,10.4851549]
[1748429435513,5.74085768,174.19,174.17,10.4851549]
[1748429436012,5.74085768,174.19,174.16,16.29462443]
[1748429436223,5.74085768,174.19,174.15,16.29462443]
[1748429436789,5.74085768,174.19,174.17,16.29462443]
[1748429437110,5.74085768,174.19,174.16,16.29462443]
[1748429437811,5.74019861,174.21,174.18,16.29462443]
[1748429438210,5.74019861,174.21,174.17,16.29462443]
[1748429438512,5.74019861,174.21,174.13,18.64964886]
[1748429438708,5.74019861,174.21,174.18,16.29462443]
[1748429440299,22.03482304,174.21,174.17,16.29462443]
[1748429440895,36.38531956,174.21,174.17,16.29462443]
[1748429441392,36.38531956,174.21,174.16,16.29462443]
[1748429441808,16.29462443,174.2,174.15,16.29462443]
[1748429442502,30.64512095,174.21,174.16,16.29462443]
[1748429442891,5.74052812,174.2,174.17,16.29462443]
[1748429443090,5.74052812,174.2,174.16,16.29462443]
[1748429444212,20.09184844,174.2,174.16,16.29462443]
[1748429445412,14.35132032,174.2,174.16,16.29462443]
[1748429445996,30.64594475,174.2,174.15,16.29462443]
[1748429446999,30.64594475,174.2,174.16,16.29462443]
[1748429447433,36.38647287,174.2,174.16,16.29462443]
[1748429448000,20.09184844,174.2,174.17,16.29462443]
[1748429448314,5.74052812,174.2,174.18,16.29462443]
[1748429449237,5.74052812,174.2,174.19,16.29462443]
[1748429449538,5.74019861,174.21,174.17,16.29462443]
[1748429450196,5.74019861,174.21,174.18,16.29462443]
[1748429451633,5.73986913,174.22,174.18,16.29462443]
[1748429452026,22.03449356,174.22,174.15,7.9691]
[1748429452202,22.03449356,174.22,174.18,16.29462443]
[1748429453204,5.73986913,174.22,174.18,16.29462443]
[1748429453423,5.73986913,174.22,174.19,16.29462443]
[1748429454598,5.73986913,174.22,174.18,16.29462443]
[1748429454998,20.08954195,174.22,174.18,16.29462443]
[1748429455999,20.08954195,174.22,174.19,10.42749586]
[1748429457838,20.08954195,174.22,174.18,10.42749586]
[1748429459607,5.73986913,174.22,174.19,10.42749586]
[1748429459825,30.51703781,174.22,174.15,17.70639519]
[1748429460210,10.42749586,174.21,174.15,7.9691]
[1748429460412,10.42749586,174.21,174.17,10.42749586]
[1748429460614,10.42749586,174.2,174.16,10.42749586]
[1748429461129,10.42749586,174.18,174.15,1.5125]
[1748429461335,10.42749586,174.16,174.11,6.0558]
[1748429461538,9.02,174.2,174.1,1.6434]
[1748429461539,5.74316563,174.12,174.1,1.6434]
[1748429464232,5.74316563,174.12,174.08,16.31011367]
[1748429464416,22.0532793,174.12,174.08,16.31011367]
[1748429465005,5.74316563,174.12,174.09,16.31011367]
[1748429465411,5.74316563,174.12,174.08,16.31011367]
[1748429465921,22.0532793,174.12,174.07,16.31011367]
[1748429466835,16.31011367,174.11,174.06,49.99911367]
[1748429467042,16.31011367,174.09,174.06,7.689]
[1748429467339,16.31011367,174.08,174.04,16.31011367]
[1748429467513,16.31011367,174.07,174.03,16.31011367]
[1748429467849,5.74514535,174.06,174.03,16.31011367]
[1748429468022,22.05294948,174.13,174.05,42.31011367]
[1748429468225,22.05294948,174.13,174.08,16.31011367]
[1748429468812,36.41054772,174.13,174.08,16.31011367]
[1748429469428,20.10043405,174.13,174.08,16.31011367]
[1748429469747,36.41054772,174.13,174.09,16.31011367]
[1748429470043,36.41054772,174.13,174.08,16.31011367]
[1748429471822,62.41054772,174.13,174.08,16.31011367]
[1748429472117,16.31011367,174.11,174.07,16.31011367]
[1748429472319,16.31011367,174.12,174.07,16.31011367]
[1748429472534,16.31011367,174.1,174.05,16.31011367]
[1748429472742,16.31011367,174.09,174.05,16.31011367]
[1748429473438,5.74448529,174.08,174.05,16.31011367]
[1748429474241,5.74448529,174.08,174.06,16.31011367]
[1748429474951,5.74448529,174.08,174.07,16.31011367]
[1748429475552,5.74415532,174.09,174.07,16.31011367]
[1748429477857,5.74415532,174.09,174.08,16.31011367]
[1748429478027,5.74415532,174.09,174.07,16.31011367]
[1748429479242,5.74415532,174.09,174.06,16.31011367]
[1748429479563,5.74415532,174.09,174.08,16.31011367]
[1748429479924,5.74415532,174.09,174.07,16.31011367]
[1748429480368,5.74415532,174.09,174.07,17.85821367]
[1748429480539,31.74391195,174.1,174.08,16.31011367]
[1748429481123,5.74391195,174.1,174.08,16.31011367]
[1748429481322,16.31011367,174.09,174.02,6.5134]
[1748429481550,36.41358908,174.1,174.03,17.96961367]
[1748429481754,16.31011367,174.09,174.03,17.96961367]
[1748429482830,36.41358908,174.1,174.05,16.31011367]
[1748429484029,36.41358908,174.1,174.03,1.6595]
[1748429484235,36.41358908,174.1,174.05,16.31011367]
[1748429486782,5.74391195,174.1,174.07,16.31011367]
[1748429487362,5.74391195,174.1,174.08,16.31011367]
[1748429487842,5.74391195,174.1,174.05,26.0]
[1748429488151,5.74391195,174.1,174.09,16.31011367]
[1748429488955,20.10107971,174.12,174.08,16.31011367]
[1748429489344,20.10107971,174.12,174.09,16.31011367]
[1748429491639,5.74316563,174.12,174.09,16.31011367]
[1748429492045,5.74316563,174.12,174.1,16.31011367]
[1748429492449,5.74316563,174.12,174.09,16.31011367]
[1748429493242,5.74283581,174.13,174.09,16.31011367]
[1748429493853,5.74283581,174.13,174.1,16.31011367]
[1748429494170,5.74283581,174.13,174.11,16.31011367]
[1748429495753,5.74283581,174.13,174.09,1.5463]
[1748429495969,5.74283581,174.13,174.11,16.31011367]
[1748429496468,5.74283581,174.13,174.1,16.31011367]
[1748429500277,5.74283581,174.13,174.11,16.31011367]
[1748429503755,5.74283581,174.13,174.12,16.31011367]
[1748429505160,5.74184657,174.16,174.12,16.31011367]
[1748429505571,20.09646301,174.16,174.12,16.31011367]
[1748429514857,55.07646301,174.16,174.12,16.31011367]
[1748429517104,55.07646301,174.16,174.13,16.31011367]
[1748429518783,55.07646301,174.16,174.12,16.31011367]
[1748429521996,55.07646301,174.16,174.13,10.43519672]
[1748429523077,55.07646301,174.16,174.09,27.5463]
[1748429523293,55.07646301,174.16,174.12,10.43519672]
[1748429524785,55.07646301,174.16,174.13,10.43519672]
[1748429526576,40.72184657,174.16,174.09,27.5463]
[1748429526775,5.74184657,174.16,174.14,10.43519672]
[1748429529309,5.74184657,174.16,174.09,1.5463]
[1748429529596,5.74184657,174.16,174.13,10.43519672]
[1748429530004,5.74184657,174.16,174.09,1.5463]
[1748429530301,20.09646301,174.16,174.09,1.5463]
[1748429530478,20.09646301,174.16,174.12,10.43519672]
[1748429531801,20.09646301,174.16,174.09,1.5463]
[1748429532001,20.09646301,174.16,174.13,10.43519672]
[1748429535800,20.09646301,174.16,174.09,1.5463]
[1748429536000,10.43519672,174.13,174.08,10.43519672]
[1748429536222,65.69627643,174.12,174.08,10.43519672]
[1748429536521,65.69627643,174.12,174.07,26.0]
[1748429536725,65.69627643,174.12,174.08,10.43519672]
[1748429538127,71.57465392,174.12,174.08,16.31357421]
[1748429538806,71.57465392,174.12,174.07,16.31357421]
[1748429539209,71.57465392,174.12,174.08,16.31357421]
[1748429540621,20.10107971,174.12,174.09,16.31357421]
[1748429540808,35.16,174.11,174.09,16.31357421]
[1748429542131,35.16,174.11,174.1,16.31357421]
[1748429542315,40.90349549,174.11,174.1,16.31357421]
[1748429543730,40.90349549,174.11,174.05,1.609]
[1748429543731,40.90349549,174.11,174.09,16.31357421]
[1748429546329,55.26223421,174.11,174.08,16.31357421]
[1748429548816,55.26223421,174.11,174.05,1.609]
[1748429549023,55.26223421,174.11,174.08,16.31357421]
[1748429552538,71.57580842,174.11,174.05,1.609]
[1748429552746,71.57580842,174.11,174.07,16.31357421]
[1748429553638,71.57580842,174.11,174.05,1.609]
[1748429553639,16.31357421,174.1,174.05,1.609]
[1748429553944,16.31357421,174.09,174.05,1.609]
[1748429555527,83.97971166,174.11,174.05,17.92257421]
[1748429555730,20.10454362,174.09,174.05,17.92257421]
[1748429559852,20.10454362,174.09,174.06,16.31357421]
[1748429560035,20.10454362,174.09,174.06,10.44339087]
[1748429560922,20.10454362,174.09,174.05,1.609]
[1748429561127,20.10454362,174.09,174.05,10.44339087]
[1748429563052,20.10454362,174.09,174.01,27.6401]
[1748429563053,10.44339087,174.08,174.01,27.6401]
[1748429563224,10.44339087,174.08,174.03,10.44339087]
[1748429564524,20.10685356,174.07,174.01,27.6401]
[1748429564738,20.10685356,174.07,174.03,10.44339087]
[1748429568957,20.10685356,174.07,174.01,27.6401]
[1748429569142,20.10685356,174.07,174.03,10.44339087]
[1748429571558,10.44339087,174.06,174.01,1.6401]
[1748429571861,45.56339087,174.06,174.02,10.44339087]
[1748429573139,20.10916402,174.05,174.02,10.44339087]
[1748429575857,20.10916402,174.05,174.01,12.08349087]
[1748429578542,20.10916402,174.05,174.01,1.6401]
[1748429578740,20.10916402,174.05,174.01,12.08349087]
[1748429579954,20.10916402,174.05,174.03,10.44339087]
[1748429583280,49.46368859,174.05,174.03,10.44339087]
[1748429584264,73.85881288,174.05,173.94,1.5727]
[1748429584450,10.44339087,174.04,173.99,10.44339087]
[1748429584851,35.08,174.03,174.0,10.44339087]
[1748429585963,5.74646592,174.02,174.0,10.44339087]
[1748429586263,5.74646592,174.02,173.98,10.44339087]
[1748429586472,30.55602159,174.02,173.96,26.0]
[1748429586643,30.55602159,174.02,173.97,10.44339087]
[1748429587344,30.55602159,174.02,173.96,26.0]
[1748429587649,48.84496033,174.02,173.94,10.44339087]
[1748429587855,10.44339087,174.0,173.95,10.44339087]
[1748429588068,5.74745675,173.99,173.96,10.44339087]
[1748429588248,35.08,173.98,173.94,10.44339087]
[1748429588862,35.08,173.98,173.96,10.44339087]
[1748429590063,40.8280193,173.98,173.96,10.44339087]
[1748429592677,5.7480193,173.98,173.96,10.44339087]
[1748429595269,40.80757804,173.99,173.96,10.44339087]
[1748429597480,14.36385989,174.05,173.98,10.44339087]
[1748429597654,45.48339087,174.04,173.99,10.44339087]
[1748429597977,35.04,174.03,173.99,10.44339087]
[1748429598461,36.44339087,174.0,173.87,2.92097994]
[1748429598662,48.83934726,174.04,173.94,10.44339087]
[1748429598663,45.48339087,173.99,173.94,10.44339087]
[1748429598854,35.04,173.98,173.94,10.44339087]
[1748429599957,5.74811749,173.97,173.94,10.44339087]
[1748429601578,5.74811749,173.97,173.95,10.44339087]
[1748429602081,5.74811749,173.97,173.95,16.33668619]
[1748429606162,35.04,173.98,173.96,16.33668619]
[1748429606367,40.78789985,173.98,173.96,16.33668619]
[1748429607394,40.78789985,173.98,173.95,16.33668619]
[1748429611892,35.02,173.99,173.97,16.33668619]
[1748429612080,35.02,173.99,173.98,16.33668619]
[1748429613399,40.76743431,174.0,173.98,16.33668619]
[1748429613604,40.76743431,174.0,173.93,39.89526233]
[1748429613899,40.76743431,174.0,173.97,16.33668619]
[1748429615298,40.82743431,174.0,173.98,16.33668619]
[1748429616412,5.74646592,174.02,173.98,16.33668619]
[1748429616581,35.06,174.01,173.99,16.33668619]
[1748429616990,5.74646592,174.02,173.99,16.33668619]
[1748429617285,35.06,174.01,173.99,16.33668619]
[1748429617507,5.74646592,174.02,173.98,26.0]
[1748429617715,35.06,174.01,173.99,16.33668619]
[1748429618291,5.74646592,174.02,173.99,16.33668619]
[1748429618493,35.06,174.01,173.99,16.33668619]
[1748429618711,40.80711738,174.01,173.99,16.33668619]
[1748429618897,40.80711738,174.01,173.98,42.33668619]
[1748429619091,40.80711738,174.01,173.98,16.33668619]
[1748429620303,40.80711738,174.01,173.98,42.33668619]
[1748429621910,10.4585752,173.99,173.82,1.5035]
[1748429622106,10.4585752,173.96,173.91,10.4585752]
[1748429622406,10.4585752,173.96,173.9,10.4585752]
[1748429622407,35.08,173.95,173.9,10.4585752]
[1748429622791,35.08,173.95,173.9,36.4585752]
[1748429622990,35.08,173.95,173.91,10.4585752]
[1748429623204,5.74910888,173.94,173.91,10.4585752]
[1748429623404,5.74910888,173.94,173.93,10.4585752]
[1748429623812,20.11540102,174.0,173.96,26.0]
[1748429624011,5.7448153,174.07,173.99,42.32594648]
[1748429624307,14.36309544,174.06,174.03,16.32594648]
[1748429624620,5.7448153,174.07,174.04,16.32594648]
[1748429625093,5.7448153,174.07,174.03,16.32594648]
[1748429625415,5.7448153,174.07,174.02,35.06]
[1748429625608,5.7448153,174.07,174.03,16.32594648]
[1748429626191,5.7448153,174.07,174.04,16.32594648]
[1748429627118,5.74448529,174.08,174.04,16.32594648]
[1748429628297,5.74448529,174.08,174.05,16.32594648]
[1748429630819,5.74415532,174.09,174.05,16.32594648]
[1748429633106,22.0701018,174.09,174.04,16.32594648]
[1748429633505,36.4304901,174.09,174.05,16.32594648]
[1748429633708,20.10454362,174.09,174.05,16.32594648]
[1748429635204,20.10454362,174.09,174.06,16.32594648]
[1748429637424,20.10454362,174.09,174.02,36.6898]
[1748429637810,20.10454362,174.09,174.05,16.32594648]
[1748429639628,20.10454362,174.09,174.06,16.32594648]
[1748429639819,20.10454362,174.09,174.05,16.32594648]
[1748429640644,20.10454362,174.09,174.06,16.32594648]
[1748429641006,20.10454362,174.09,174.05,16.32594648]
[1748429642360,16.32594648,174.08,174.04,16.32594648]
[1748429642655,16.32594648,174.07,174.02,16.32594648]
[1748429642814,35.14,174.06,174.02,16.32594648]
[1748429643202,35.14,174.06,174.03,16.32594648]
[1748429643923,5.74547543,174.05,174.03,16.32594648]
[1748429645328,5.74547543,174.05,174.04,16.32594648]
[1748429650545,5.74547543,174.05,174.03,16.32594648]
[1748429652651,5.74547543,174.05,173.99,9.08]
[1748429652816,5.74547543,174.05,174.03,16.32594648]
[1748429653356,5.74547543,174.05,173.99,9.08]
[1748429653840,5.74547543,174.05,174.03,16.32594648]
[1748429655328,5.74547543,174.05,173.99,9.08]
[1748429655529,5.74547543,174.05,174.03,16.32594648]
[1748429656048,20.10916402,174.05,174.02,16.32594648]
[1748429658159,20.10916402,174.05,174.03,16.32594648]
[1748429661462,20.10916402,174.05,174.02,16.32594648]
[1748429662559,20.10916402,174.05,174.03,16.32594648]
[1748429662763,20.10916402,174.05,174.0,26.0]
[1748429662931,20.10916402,174.05,174.02,16.32594648]
[1748429668140,20.10916402,174.05,174.03,16.32594648]
[1748429672062,20.10916402,174.05,174.0,26.0]
[1748429672262,20.10916402,174.05,174.02,16.32594648]
[1748429673950,20.10916402,174.05,174.02,10.44776154]
[1748429675055,20.10916402,174.05,174.0,26.0]
[1748429675236,20.10916402,174.05,174.02,10.44776154]
[1748429676363,20.10916402,174.05,174.0,26.0]
[1748429676547,20.10916402,174.05,174.02,10.44776154]
[1748429678264,30.55692556,174.05,173.98,1.5845]
[1748429678473,10.44776154,174.01,173.93,95.8185]
[1748429678646,10.44776154,174.0,173.95,10.44776154]
[1748429678836,45.46776154,174.01,173.96,10.44776154]
[1748429679665,35.02,174.01,173.97,10.44776154]
[1748429679863,45.46776154,174.01,173.97,10.44776154]
[1748429680078,51.35531516,174.01,173.97,16.33531516]
[1748429680264,5.74712643,174.0,173.97,16.33531516]
[1748429682546,5.74712643,174.0,173.98,16.33531516]
[1748429684769,5.74679616,174.01,173.98,16.33531516]
[1748429690671,20.11378656,174.01,173.97,16.33531516]
[1748429696167,36.44910172,174.01,173.97,16.33531516]
[1748429696364,20.11378656,174.01,173.93,16.7985]
[1748429696557,36.44910172,174.01,173.96,16.33531516]
[1748429696965,36.44910172,174.01,173.93,16.7985]
[1748429697162,36.44910172,174.01,173.96,16.33531516]
[1748429699070,36.44910172,174.01,173.97,16.33531516]
[1748429699869,20.11378656,174.01,173.97,16.33531516]
[1748429700186,5.74679616,174.01,173.98,16.33531516]
[1748429700382,5.74679616,174.01,173.86,6.43510164]
[1748429700579,8.66410977,173.88,173.69,10.0]
[1748429700777,8.66410977,173.88,173.59,118.01220348]
[1748429700778,34.46,173.98,173.72,10.0]
[1748429700983,18.64964886,173.96,173.79,16.33531516]
[1748429701157,16.33531516,173.92,173.85,16.33531516]
[1748429701362,16.33531516,173.92,173.8,9.9]
[1748429701363,37.2,173.94,173.88,16.33531516]
[1748429701564,16.33531516,173.93,173.87,26.65531516]
[1748429701767,16.33531516,173.92,173.87,10.32]
[1748429701991,5.7477871,173.98,173.88,18.47836826]
[1748429702290,16.33531516,173.92,173.89,2.1430531]
[1748429702475,16.33531516,173.91,173.9,2.1430531]
[1748429702867,5.75043128,173.9,173.85,10.32]
[1748429703071,22.08574644,173.9,173.85,10.32]
[1748429703268,5.75043128,173.9,173.85,10.32]
[1748429703466,5.75043128,173.9,173.86,2.14253951]
[1748429703791,5.75043128,173.9,173.85,26.65531516]
[1748429703792,5.75043128,173.9,173.87,2.14256787]
[1748429704090,5.75043128,173.9,173.88,2.14255815]
[1748429704286,5.75043128,173.9,173.89,2.14243705]
[1748429704494,5.75043128,173.9,173.89,2.14243594]
[1748429704792,14.3760782,173.9,173.89,2.14256685]
[1748429704966,30.71139336,173.9,173.85,16.33531516]
[1748429705171,68.01139336,173.9,173.86,2.14117051]
[1748429705384,68.01139336,173.9,173.87,2.14117051]
[1748429705589,68.01139336,173.9,173.84,16.33531516]
[1748429705792,51.6760782,173.9,173.85,2.13964216]
[1748429706115,68.01139336,173.9,173.86,2.13964216]
[1748429706403,68.01139336,173.9,173.85,16.33531516]
[1748429706404,68.01139336,173.9,173.87,2.13964216]
[1748429706585,68.01139336,173.9,173.85,16.33531516]
[1748429706787,51.6760782,173.9,173.86,2.13834907]
[1748429706988,57.42650948,173.9,173.87,2.13834907]
[1748429707169,57.42650948,173.9,173.85,16.33531516]
[1748429707371,57.42650948,173.9,173.86,2.13725764]
[1748429707594,57.42650948,173.9,173.87,2.13726092]
[1748429707808,57.42650948,173.9,173.85,16.33531516]
[1748429708091,57.42650948,173.9,173.86,2.13726121]
[1748429708294,57.42650948,173.9,173.85,16.33531516]
[1748429708593,73.76182464,173.9,173.86,2.13631437]
[1748429708802,73.76182464,173.9,173.85,16.33531516]
[1748429709005,73.76182464,173.9,173.86,2.13631721]
[1748429709203,73.76182464,173.9,173.85,16.33531516]
[1748429709405,73.76182464,173.9,173.86,2.13634332]
[1748429709566,73.76182464,173.9,173.85,16.33531516]
[1748429709900,73.76182464,173.9,173.86,2.13549556]
[1748429710076,73.76182464,173.9,173.85,16.33531516]
[1748429710806,5.7510927,173.88,173.85,16.33531516]
[1748429711373,5.7510927,173.88,173.87,16.33531516]
[1748429712172,5.7510927,173.88,173.86,16.33531516]
[1748429712382,17.3510927,173.88,173.86,16.33531516]
[1748429712611,31.72882446,173.88,173.82,27.5346]
[1748429712892,31.72882446,173.88,173.84,16.33531516]
[1748429713516,16.33531516,173.85,173.79,16.33531516]
[1748429713670,16.33531516,173.84,173.79,16.33531516]
[1748429714370,16.33531516,173.83,173.79,16.33531516]
[1748429714682,20.13113999,173.86,173.82,16.33531516]
[1748429714892,20.13113999,173.86,173.79,16.33531516]
[1748429714893,37.18,173.85,173.84,16.33531516]
[1748429715374,37.18,173.85,173.83,16.33531516]
[1748429716301,37.18,173.85,173.82,16.33531516]
[1748429716809,11.6,173.88,173.84,16.33531516]
[1748429717010,11.6,173.88,173.87,16.33531516]
[1748429717224,5.75081254,173.89,173.87,16.33531516]
[1748429717512,5.74977,173.92,173.88,16.33531516]
[1748429717709,37.14,173.91,173.89,16.33531516]
[1748429717869,5.74977,173.92,173.89,16.33531516]
[1748429718073,42.88977,173.92,173.89,16.33531516]
[1748429718704,42.88977,173.92,173.88,16.33531516]
[1748429719008,42.86977,173.92,173.88,16.33531516]
[1748429719401,73.57951018,173.92,173.88,16.33531516]
[1748429720819,73.53951018,173.92,173.88,16.33531516]
[1748429721316,16.33531516,173.91,173.85,1.6258]
[1748429721479,16.33531516,173.91,173.86,16.33531516]
[1748429722906,20.12650948,173.9,173.86,16.33531516]
[1748429723208,31.72650948,173.9,173.86,16.33531516]
[1748429723596,16.33531516,173.89,173.85,16.33531516]
[1748429723987,16.33531516,173.88,173.84,16.33531516]
[1748429724193,37.02,173.92,173.85,2.13223084]
[1748429724393,16.33531516,173.89,173.82,36.32]
[1748429724581,16.33531516,173.87,173.83,2.13227319]
[1748429724781,16.33531516,173.87,173.82,10.32]
[1748429724988,16.33531516,173.87,173.83,2.13255453]
[1748429725202,20.13113999,173.86,173.82,26.65531516]
[1748429725405,20.13113999,173.86,173.83,16.33531516]
[1748429725593,5.75175428,173.86,173.83,16.33531516]
[1748429726493,16.33531516,173.85,173.77,11.8408]
[1748429726702,16.33531516,173.84,173.8,16.33531516]
[1748429726905,5.75253886,173.84,173.81,16.33531516]
[1748429727399,16.33531516,173.87,173.83,16.33531516]
[1748429727710,22.08607713,173.89,173.8,26.0]
[1748429728010,16.33531516,173.92,173.88,16.33531516]
[1748429728206,22.08475458,173.93,173.89,16.33531516]
[1748429728707,16.33531516,173.92,173.88,16.33531516]
[1748429728887,5.74943942,173.93,173.9,16.33531516]
[1748429730488,16.33531516,173.95,173.9,16.33531516]
[1748429731212,16.33531516,173.95,173.91,16.33531516]
[1748429732495,36.455483,173.96,173.91,16.33531516]
[1748429733913,16.33531516,173.95,173.91,16.33531516]
[1748429734801,5.74910888,173.94,173.91,16.33531516]
[1748429740821,5.74877838,173.95,173.93,16.33531516]
[1748429742143,20.12016784,173.96,173.93,16.33531516]
[1748429742624,20.12016784,173.96,173.94,16.33531516]
[1748429743129,20.12016784,173.96,173.92,16.33531516]
[1748429743130,36.455483,173.96,173.92,16.33531516]
[1748429743332,36.455483,173.96,173.93,2.14040357]
[1748429743499,36.455483,173.96,173.92,16.33531516]
[1748429744230,36.455483,173.96,173.88,26.47531516]
[1748429744231,20.12016784,173.96,173.93,18.47668972]
[1748429744439,20.12016784,173.96,173.88,26.47531516]
[1748429744602,20.12016784,173.96,173.93,16.33531516]
[1748429744802,20.12016784,173.96,173.92,16.33531516]
[1748429745118,20.12016784,173.96,173.93,2.14136639]
[1748429745303,20.12016784,173.96,173.92,16.33531516]
[1748429745507,20.12016784,173.96,173.93,2.14136682]
[1748429745715,20.12016784,173.96,173.92,16.33531516]
[1748429745917,20.12016784,173.96,173.93,2.14238648]
[1748429746119,20.12016784,173.96,173.92,16.33531516]
[1748429746316,20.12016784,173.96,173.93,2.1423869]
[1748429746506,20.12016784,173.96,173.92,16.33531516]
[1748429746707,20.12016784,173.96,173.93,2.14229349]
[1748429746926,20.12016784,173.96,173.92,16.33531516]
[1748429747136,20.12016784,173.96,173.93,18.47760865]
[1748429747308,20.12016784,173.96,173.93,16.33531516]
[1748429748311,36.455483,173.96,173.92,16.33531516]
[1748429748519,36.455483,173.96,173.93,2.14227971]
[1748429748807,36.455483,173.96,173.92,16.33531516]
[1748429749013,36.455483,173.96,173.93,2.14224844]
[1748429749214,36.455483,173.96,173.92,16.33531516]
[1748429749413,20.12016784,173.96,173.93,2.14220453]